fUST/lending_fUST_20260118
["ID","MTS","AMOUNT","RATE_DAILY","PERIOD"]
[402482241,1768684254405,-500.0,0.00016712,3]
[402482243,1768684254414,-500.0,0.00016712,3]
[402482245,1768684254423,-612.91517649,0.00016712,3]
[402482247,1768684254432,-1388.33,0.00016712,3]
[402482248,1768684254441,-1180.02,0.00016712,3]
[402482250,1768684254451,-1165.92,0.00016712,3]
[402482252,1768684254461,-500.0,0.00016712,3]
[402482254,1768684254470,-798.73,0.00016712,3]
[402482256,1768684254479,-500.0,0.00016712,3]
[402482258,1768684254488,-500.0,0.00016712,3]
[402482260,1768684254497,-668.13,0.00016712,3]
[402482262,1768684254507,-500.0,0.00016712,3]
[402482264,1768684254515,-500.0,0.00016712,3]
[402482266,1768684254524,-500.0,0.00016712,3]
[402482268,1768684254533,-500.0,0.00016712,3]
[402482270,1768684254542,-500.0,0.00016712,3]
[402482272,1768684254551,-581.92,0.00016712,3]
[402482274,1768684254561,-500.0,0.00016712,3]
[402482276,1768684254570,-500.0,0.00016712,3]
[402482277,1768684254578,-500.0,0.00016712,3]
[402482279,1768684254587,-500.0,0.00016712,3]
[402482281,1768684254596,-500.0,0.00016712,3]
[402482283,1768684254605,-500.0,0.00016712,3]
[402482285,1768684254614,-500.0,0.00016712,3]
[402482287,1768684254623,-500.0,0.00016712,3]
[402482289,1768684254633,-242.80022406,0.00016712,3]
[402482291,1768684254643,-500.0,0.00016712,3]
[402482293,1768684254653,-500.0,0.00016712,3]
[402482295,1768684254662,-500.0,0.00016712,3]
[402482296,1768684254672,-500.0,0.00016712,3]
[402482298,1768684254681,-557.6,0.00016712,3]
[402482300,1768684254690,-500.0,0.00016712,3]
[402482302,1768684254699,-500.0,0.00016712,3]
[402482304,1768684254708,-672.15,0.00016712,3]
[402482306,1768684254722,-879.74,0.00016712,3]
[402482308,1768684254731,-809.41,0.00016712,3]
[402482310,1768684254740,-500.0,0.00016712,3]
[402482312,1768684254749,-500.0,0.00016712,3]
[402482314,1768684254760,-500.0,0.00016712,3]
[402482316,1768684254769,-500.0,0.00016712,3]
[402482318,1768684254778,-500.0,0.00016712,3]
[402482320,1768684254787,-1077.54,0.00016712,3]
[402482321,1768684254796,-508.14,0.00016712,3]
[402482323,1768684254805,-500.0,0.00016712,3]
[402482325,1768684254814,-543.64406781,0.00016712,3]
[402482327,1768684254823,-500.0,0.00016712,3]
[402482329,1768684254832,-500.0,0.00016712,3]
[402482331,1768684254841,-500.0,0.00016712,3]
[402482333,1768684254850,-565.35,0.00016712,3]
[402482335,1768684254859,-500.0,0.00016712,3]
[402482337,1768684254868,-293.31393947,0.00016712,3]
[402482339,1768684254877,-500.0,0.00016712,3]
[402482341,1768684254886,-500.0,0.00016712,3]
[402482343,1768684254895,-1102.92,0.00016712,3]
[402482345,1768684254905,-500.0,0.00016712,3]
[402482346,1768684254914,-500.0,0.00016712,3]
[402482348,1768684254923,-500.0,0.00016712,3]
[402482350,1768684254933,-546.26361381,0.00016712,3]
[402482352,1768684254942,-1443.33,0.00016712,3]
[402482354,1768684254952,-1301.79,0.00016712,3]
[402482356,1768684254960,-500.0,0.00016712,3]
[402482358,1768684254969,-500.0,0.00016712,3]
[402482359,1768684254978,-500.0,0.00016712,3]
[402482361,1768684254987,-500.0,0.00016712,3]
[402482363,1768684254995,-500.0,0.00016712,3]
[402482365,1768684255005,-500.0,0.00016712,3]
[402482367,1768684255015,-500.0,0.00016712,3]
[402482369,1768684255024,-1128.02,0.00016712,3]
[402482371,1768684255033,-500.0,0.00016712,3]
[402482373,1768684255042,-500.0,0.00016712,3]
[402482375,1768684255051,-585.43,0.00016712,3]
[402482377,1768684255060,-500.0,0.00016712,3]
[402482378,1768684255070,-1034.05,0.00016712,3]
[402482380,1768684255079,-500.0,0.00016712,3]
[402482382,1768684255088,-500.0,0.00016712,3]
[402482384,1768684255097,-977.09,0.00016712,3]
[402482386,1768684255106,-595.76,0.00016712,3]
[402482388,1768684255115,-567.42,0.00016712,3]
[402482390,1768684255124,-825.7,0.00016712,3]
[402482392,1768684255133,-162.71,0.00016712,2]
[402482394,1768684255144,-500.0,0.00016712,3]
[402482395,1768684255154,-500.0,0.00016712,3]
[402482397,1768684255163,-500.0,0.00016712,3]
[402482399,1768684255175,-500.0,0.00016712,3]
[402482401,1768684255184,-637.05,0.00016712,3]
[402482403,1768684255193,-499.59360928,0.00016712,3]
[402482405,1768684255202,-500.0,0.00016712,3]
[402482407,1768684255212,-804.74,0.00016712,3]
[402482409,1768684255222,-500.0,0.00016712,3]
[402482411,1768684255231,-500.0,0.00016712,3]
[402482413,1768684255240,-500.0,0.00016712,3]
[402482415,1768684255250,-500.0,0.00016712,3]
[402482417,1768684255259,-906.67,0.00016712,3]
[402482419,1768684255269,-6524.08,0.00016712,3]
[402482421,1768684255278,-500.0,0.00016712,3]
[402482423,1768684255287,-700.91,0.00016712,3]
[402482424,1768684255296,-835.03,0.00016712,3]
[402482426,1768684255306,-500.0,0.00016712,3]
[402482428,1768684255315,-500.0,0.00016712,3]
[402482430,1768684255325,-500.0,0.00016712,3]
[402482432,1768684255335,-770.55,0.00016712,3]
[402482434,1768684255344,-500.0,0.00016712,3]
[402482436,1768684255354,-1042.69,0.00016712,3]
[402482438,1768684255363,-500.0,0.00016712,3]
[402482440,1768684255372,-580.05,0.00016712,3]
[402482442,1768684255381,-252.72623696,0.00016712,3]
[402482447,1768684255424,-247.27376304,0.00016712,3]
[402482449,1768684255434,-500.0,0.00016712,3]
[402482451,1768684255443,-500.0,0.00016712,3]
[402482453,1768684255452,-96.2288951,0.00016712,2]
[402485411,1768684843653,5000.0,0.00012841,2]
[402485412,1768684865904,3471.18764324,0.00012841,2]
[402485422,1768685317849,301.12874884,7.3e-05,2]
[402485430,1768685361623,190.2103474,0.00024024,120]
[402485461,1768685431990,-599.789934,0.00013008,5]
[402485462,1768685431999,-604.0,0.00013008,2]
[402485463,1768685432008,-164.29181391,0.00013009,2]
[402485465,1768685432018,-300.0,0.00013272,2]
[402485466,1768685432027,-300.0,0.00013272,2]
[402485467,1768685432037,-300.0,0.00013272,2]
[402485468,1768685432048,-300.0,0.00013272,2]
[402485469,1768685432057,-31.91825209,0.00013272,2]
[402485471,1768685432069,-1168.08174791,0.00013272,2]
[402485473,1768685432078,-500.0,0.00013273,2]
[402485474,1768685432087,-500.0,0.00013273,2]
[402485475,1768685432096,-500.0,0.00013273,2]
[402485476,1768685432106,-81.91825209,0.00013273,2]
[402485487,1768685438168,-418.08174791,0.00013273,2]
[402485488,1768685438178,-500.0,0.00013273,2]
[402485489,1768685438188,-260.44885467,0.0001362,2]
[402485490,1768685438197,-500.0,0.0001362,2]
[402485491,1768685438207,-500.0,0.0001362,2]
[402485492,1768685438216,-500.0,0.0001362,2]
[402485493,1768685438225,-500.0,0.0001362,2]
[402485494,1768685438236,-405.81670383,0.0001362,2]
[402485495,1768685438245,-241.95586083,0.0001362,2]
[402485496,1768685438255,-500.0,0.0001362,2]
[402485497,1768685438268,-500.0,0.0001362,2]
[402485498,1768685438278,-500.0,0.0001362,2]
[402485499,1768685438288,-535.82899484,0.0001362,2]
[402485500,1768685438299,-500.0,0.0001362,2]
[402485501,1768685438311,-500.0,0.0001362,2]
[402485502,1768685438320,-500.0,0.0001362,2]
[402485503,1768685438331,-467.47456948,0.0001362,2]
[402485504,1768685438340,-500.0,0.0001362,2]
[402485505,1768685438349,-500.0,0.0001362,2]
[402485506,1768685438359,-500.0,0.0001362,2]
[402485507,1768685438368,-465.72638475,0.0001362,2]
[402485508,1768685438377,-500.0,0.0001362,2]
[402485509,1768685438386,-3524.59189967,0.00013621,2]
[402485510,1768685438398,-706.64386769,0.00013621,2]
[402485511,1768685438416,-3972.01336279,0.00013621,2]
[402485512,1768685438428,-15161.51944897,0.00013621,2]
[402485513,1768685438447,-976635.23142088,0.00013621,2]
[402485514,1768685438456,-300.0,0.00013673,2]
[402485515,1768685438467,-500.0,0.00013699,2]
[402485516,1768685438476,-500.0,0.00013699,2]
[402485517,1768685438485,-500.0,0.00013699,2]
[402485518,1768685438494,-500.0,0.00013699,2]
[402485519,1768685438503,-500.0,0.00013699,2]
[402485520,1768685438512,-500.43334725,0.00013699,2]
[402485521,1768685438521,-500.0,0.00013699,2]
[402485522,1768685438531,-500.0,0.00013699,2]
[402485523,1768685438541,-269.76111784,0.00013721,2]
[402485524,1768685438550,-494.39702115,0.00013821,2]
[402485525,1768685438559,-1000.0,0.00013821,2]
[402485526,1768685438568,-1000.0,0.00013821,2]
[402485527,1768685438578,-1000.0,0.00013821,2]
[402485528,1768685438587,-154.30188776,0.00013821,2]
[402485529,1768685438597,-1000.0,0.00013821,2]
[402485530,1768685438607,-100000.0,0.00014006,2]
[402485531,1768685438616,-199.93548987,0.00014162,7]
[402485532,1768685438626,-600.0,0.00014221,2]
[402485533,1768685438635,-1000.0,0.00014247,2]
[402485534,1768685438645,-1000.0,0.00014247,2]
[402485535,1768685438655,-1000.0,0.00014247,2]
[402485536,1768685438664,-502.90945713,0.00014247,2]
[402485537,1768685438673,-1000.0,0.00014247,2]
[402485538,1768685438683,-1000.0,0.00014247,2]
[402485539,1768685438692,-1000.0,0.00014247,2]
[402485540,1768685438702,-1000.0,0.00014368,2]
[402485541,1768685438711,-1500.0,0.00014368,2]
[402485542,1768685438721,-1500.0,0.00014368,2]
[402485543,1768685438730,-1500.0,0.00014368,2]
[402485544,1768685438740,-269.76111781,0.00014375,2]
[402485545,1768685438750,-5000.0,0.0001451,2]
[402485546,1768685438763,-420.0,0.00014551,2]
[402485547,1768685438772,-900.0,0.00014768,2]
[402485548,1768685438781,-500.0,0.00014795,2]
[402485549,1768685438791,-1500.0,0.00014795,2]
[402485550,1768685438800,-1500.0,0.00014795,2]
[402485551,1768685438810,-1500.0,0.00014795,2]
[402485552,1768685438820,-1500.0,0.00014795,2]
[402485553,1768685438830,-1500.0,0.00014795,2]
[402485554,1768685438839,-1004.15629489,0.00014916,2]
[402485555,1768685438849,-1500.0,0.00014916,2]
[402485556,1768685438858,-2000.0,0.00014916,2]
[402485557,1768685438868,-180.10446059,0.0001494,2]
[402485558,1768685438877,-29353.50013049,0.00015,7]
[402485559,1768685438897,-193.86434041,0.00015009,2]
[402485560,1768685438908,-269.76111781,0.0001503,2]
[402485561,1768685438919,-10000.0,0.00015057,2]
[402485562,1768685438929,-1308.98,0.00015057,2]
[402485563,1768685438939,-10000.0,0.00015114,2]
[402485564,1768685438949,-10000.0,0.00015114,2]
[402485565,1768685438959,-10000.0,0.00015114,2]
[402485566,1768685438969,-2317.5,0.00015114,2]
[402485567,1768685438979,-1200.0,0.00015316,2]
[402485568,1768685438989,-503.66607308,0.00015342,2]
[402485569,1768685438999,-2000.0,0.00015342,2]
[402485570,1768685439009,-1500.0,0.00015342,2]
[402485571,1768685439020,-1000.0,0.00015342,2]
[402485572,1768685439030,-2000.0,0.00015342,2]
[402485573,1768685439040,-2500.0,0.00015464,2]
[402485574,1768685439050,-730.0,0.00015562,2]
[402485575,1768685439060,-730.0,0.00015564,2]
[402485576,1768685439071,-160.0,0.00015622,2]
[402485577,1768685439081,-30000.0,0.00015644,2]
[402485578,1768685439091,-300.73,0.00015644,2]
[402485579,1768685439101,-2000.0,0.00015644,2]
[402485580,1768685439112,-162.380719,0.00015644,2]
[402485581,1768685439122,-162.380719,0.00015644,2]
[402485582,1768685439132,-151.0,0.00015644,2]
[402485583,1768685439142,-2000.0,0.00015644,2]
[402485584,1768685439152,-168.3888056,0.00015644,2]
[402485585,1768685439162,-151.0,0.00015644,2]
[402485586,1768685439173,-445.202766,0.00015644,2]
[402485587,1768685439183,-151.0,0.00015644,2]
[402485588,1768685439193,-2000.0,0.00015644,2]
[402485589,1768685439203,-174.61919141,0.00015644,2]
[402485590,1768685439213,-201.18700456,0.00015644,2]
[402485591,1768685439223,-151.0,0.00015644,2]
[402485592,1768685439233,-2000.0,0.00015644,2]
[402485593,1768685439242,-181.08010149,0.00015644,2]
[402485594,1768685439253,-2000.0,0.00015644,2]
[402485595,1768685439271,-187.78006525,0.00015644,2]
[402485596,1768685439283,-1957.856,0.00015644,2]
[402485597,1768685439293,-2000.0,0.00015644,2]
[402485598,1768685439303,-194.72792766,0.00015644,2]
[402485599,1768685439314,-2000.0,0.00015644,2]
[402485600,1768685439324,-201.93286099,0.00015644,2]
[402485601,1768685439333,-2000.0,0.00015644,2]
[402485602,1768685439342,-209.40437684,0.00015644,2]
[402485603,1768685439351,-2000.0,0.00015644,2]
[402485604,1768685439359,-217.15233878,0.00015644,2]
[402485605,1768685439368,-2000.0,0.00015644,2]
[402485606,1768685439377,-225.18697532,0.00015644,2]
[402485607,1768685439386,-2000.0,0.00015644,2]
[402485608,1768685439396,-233.51889341,0.00015644,2]
[402485609,1768685439411,-2000.0,0.00015644,2]
[402485610,1768685439421,-242.15909246,0.00015644,2]
[402485611,1768685439431,-2000.0,0.00015644,2]
[402485612,1768685439442,-251.11897888,0.00015644,2]
[402485613,1768685439452,-250.0,0.00015644,2]
[402485614,1768685439462,-2000.0,0.00015644,2]
[402485615,1768685439473,-250.0,0.00015644,2]
[402485616,1768685439483,-260.4103811,0.00015644,2]
[402485617,1768685439494,-250.0,0.00015644,2]
[402485618,1768685439505,-270.0455652,0.00015644,2]
[402485619,1768685439515,-500.0,0.00015644,2]
[402485620,1768685439526,-2000.0,0.00015644,2]
[402485621,1768685439536,-250.0,0.00015644,2]
[402485622,1768685439547,-280.03725112,0.00015644,2]
[402485623,1768685439559,-500.0,0.00015644,2]
[402485624,1768685439570,-2000.0,0.00015644,2]
[402485625,1768685439581,-151.0,0.00015644,2]
[402485626,1768685439591,-290.39862941,0.00015644,2]
[402485627,1768685439602,-500.0,0.00015644,2]
[402485628,1768685439613,-2000.0,0.00015644,2]
[402485629,1768685439623,-301.1433787,0.00015644,2]
[402485630,1768685439634,-500.0,0.00015644,2]
[402485631,1768685439644,-2000.0,0.00015644,2]
[402485632,1768685439655,-500.0,0.00015644,2]
[402485633,1768685439665,-500.0,0.00015644,2]
[402485634,1768685439676,-500.0,0.00015644,2]
[402485635,1768685439686,-2150.738,0.00015644,2]
[402485636,1768685439697,-500.0,0.00015644,2]
[402485637,1768685439707,-500.0,0.00015644,2]
[402485638,1768685439718,-500.0,0.00015644,2]
[402485639,1768685439728,-500.0,0.00015644,2]
[402485640,1768685439738,-500.0,0.00015644,2]
[402485641,1768685439748,-500.0,0.00015644,2]
[402485642,1768685439758,-500.0,0.00015644,2]
[402485643,1768685439768,-500.0,0.00015644,2]
[402485644,1768685439778,-500.0,0.00015644,2]
[402485645,1768685439789,-500.0,0.00015644,2]
[402485646,1768685439799,-500.0,0.00015644,2]
[402485647,1768685439810,-2000.0,0.00015644,2]
[402485648,1768685439820,-2000.0,0.00015644,2]
[402485649,1768685439830,-269.76111781,0.00015684,2]
[402485650,1768685439840,-730.0,0.00015689,2]
[402485651,1768685439850,-2030.296672,0.00015699,2]
[402485652,1768685439861,-306.0,0.00015752,2]
[402485653,1768685439873,-2105.41764886,0.00015754,2]
[402485654,1768685439883,-2183.31810187,0.00015809,2]
[402485655,1768685439894,-2264.10087164,0.00015864,2]
[402485656,1768685439904,-603.86573033,0.00015864,2]
[402485657,1768685439917,-706.13735223,0.0001589,2]
[402485658,1768685439929,-2500.0,0.0001589,2]
[402485659,1768685439938,-1498.58969849,0.00015919,2]
[402485660,1768685439948,-587.0,0.00015953,2]
[402485661,1768685439958,-704.00140838,0.0001599,2]
[402485662,1768685439968,-2816.00563353,0.0001599,2]
[402485663,1768685439978,-6329.67666276,0.0001599,2]
[402485664,1768685439988,-730.0,0.00016011,2]
[402485665,1768685439998,-3000.0,0.00016012,2]
[402485666,1768685440008,-500.0,0.00016027,3]
[402485667,1768685440018,-377.8688684,0.00016027,2]
[402485668,1768685440028,-639.0,0.0001603,2]
[402485669,1768685440038,-639.0,0.00016094,2]
[402485670,1768685440052,-639.0,0.00016098,2]
[402485671,1768685440061,-639.0,0.00016113,2]
[402485673,1768685440071,-500.0,0.00016164,3]
[402485675,1768685440081,-305.0799874,0.00016164,2]
[402485676,1768685440091,-306.0,0.00016164,2]
[402485677,1768685440101,-305.0799874,0.00016164,2]
[402485678,1768685440111,-305.0799874,0.00016164,2]
[402485679,1768685440121,-198.1096287,0.00016164,2]
[402485680,1768685440131,-305.0799874,0.00016164,2]
[402485681,1768685440141,-305.0799874,0.00016164,2]
[402485682,1768685440152,-194.3299959,0.00016164,2]
[402485683,1768685440162,-306.0,0.00016164,2]
[402485684,1768685440172,-305.0799874,0.00016164,2]
[402485685,1768685440182,-305.0799874,0.00016164,2]
[402485686,1768685440192,-194.3299959,0.00016164,2]
[402485687,1768685440202,-305.0799874,0.00016164,2]
[402485688,1768685440212,-194.3299959,0.00016164,2]
[402485689,1768685440222,-305.0799874,0.00016164,2]
[402485690,1768685440232,-730.0,0.00016178,2]
[402485691,1768685440242,-31110.0,0.00016192,2]
[402485692,1768685440255,-311.85701,0.00016192,2]
[402485693,1768685440273,-461.67526834,0.00016192,2]
[402485694,1768685440287,-151.0,0.00016192,2]
[402485695,1768685440297,-2230.315306,0.00016192,2]
[402485696,1768685440311,-1041.66666667,0.00016192,2]
[402485697,1768685440322,-639.0,0.00016211,2]
[402485698,1768685440332,-466.28663882,0.00016219,2]
[402485699,1768685440342,-1865.14655526,0.00016219,2]
[402485700,1768685440353,-4196.57974934,0.00016219,2]
[402485701,1768685440363,-7453.12563483,0.00016219,2]
[402485702,1768685440373,-200.0,0.00016301,3]
[402485703,1768685440383,-200.0,0.00016301,3]
[402485705,1768685440393,-500.0,0.00016301,3]
[402485707,1768685440402,-200.0,0.00016301,3]
[402485709,1768685440412,-36063.83032382,0.00016326,2]
[402485711,1768685440421,-153.0,0.00016329,2]
[402485713,1768685440431,-518.6370129,0.00016329,2]
[402485715,1768685440441,-269.76111781,0.00016338,2]
[402485717,1768685440450,-13205.58024209,0.00016338,2]
[402485719,1768685440460,-3000.0,0.00016428,2]
[402485721,1768685440470,-328.076,0.00016437,2]
[402485723,1768685440479,-500.0,0.00016438,3]
[402485725,1768685440489,-273.6246933,0.00016438,3]
[402485727,1768685440499,-500.0,0.00016438,3]
[402485729,1768685440508,-500.0,0.00016438,3]
[402485731,1768685440517,-500.0,0.00016438,3]
[402485732,1768685440527,-500.0,0.00016438,3]
[402485733,1768685440536,-941.42,0.00016438,3]
[402485734,1768685440546,-500.0,0.00016438,3]
[402485735,1768685440555,-500.0,0.00016438,3]
[402485736,1768685440565,-500.0,0.00016438,3]
[402485737,1768685440574,-535.27896173,0.00016438,3]
[402485738,1768685440584,-500.0,0.00016438,3]
[402485739,1768685440593,-500.0,0.00016438,3]
[402485740,1768685440603,-500.0,0.00016438,3]
[402485741,1768685440612,-500.0,0.00016438,2]
[402485742,1768685440622,-500.0,0.00016438,3]
[402485743,1768685440633,-719.13,0.00016438,3]
[402485744,1768685440643,-172.631544,0.00016438,3]
[402485745,1768685440654,-500.0,0.00016438,3]
[402485746,1768685440665,-500.0,0.00016438,3]
[402485747,1768685440675,-1301.91,0.00016438,3]
[402485748,1768685440685,-500.0,0.00016438,3]
[402485749,1768685440695,-158.856128,0.00016438,3]
[402485750,1768685440704,-500.0,0.00016438,3]
[402485751,1768685440714,-500.0,0.00016438,3]
[402485752,1768685440724,-565.24,0.00016438,3]
[402485753,1768685440735,-500.0,0.00016438,3]
[402485754,1768685440744,-500.0,0.00016438,3]
[402485755,1768685440754,-675.35,0.00016438,3]
[402485756,1768685440763,-172.6105479,0.00016438,3]
[402485757,1768685440773,-976.53,0.00016438,3]
[402485758,1768685440783,-500.0,0.00016438,3]
[402485759,1768685440792,-500.0,0.00016438,3]
[402485760,1768685440802,-500.0,0.00016438,3]
[402485761,1768685440812,-500.0,0.00016438,3]
[402485762,1768685440822,-500.0,0.00016438,3]
[402485763,1768685440832,-846.47,0.00016438,3]
[402485764,1768685440841,-500.0,0.00016438,3]
[402485765,1768685440851,-500.0,0.00016438,3]
[402485766,1768685440860,-500.0,0.00016438,3]
[402485767,1768685440870,-500.0,0.00016438,3]
[402485768,1768685440880,-529.31,0.00016438,3]
[402485769,1768685440889,-500.0,0.00016438,3]
[402485770,1768685440899,-500.0,0.00016438,3]
[402485771,1768685440909,-500.0,0.00016438,3]
[402485772,1768685440919,-500.0,0.00016438,3]
[402485773,1768685440939,-500.0,0.00016438,3]
[402485774,1768685440951,-500.0,0.00016438,3]
[402485775,1768685440960,-748.32,0.00016438,3]
[402485776,1768685440971,-500.0,0.00016438,3]
[402485777,1768685440981,-464.68587701,0.00016438,3]
[402485778,1768685440991,-682.13,0.00016438,3]
[402485779,1768685441002,-563.84,0.00016438,3]
[402485780,1768685441011,-500.0,0.00016438,3]
[402485781,1768685441022,-500.0,0.00016438,3]
[402485782,1768685441032,-500.0,0.00016438,3]
[402485783,1768685441042,-500.0,0.00016438,3]
[402485784,1768685441051,-500.0,0.00016438,3]
[402485785,1768685441061,-616.18,0.00016438,3]
[402485786,1768685441072,-500.0,0.00016438,3]
[402485787,1768685441082,-500.0,0.00016438,3]
[402485788,1768685441092,-500.0,0.00016438,3]
[402485789,1768685441103,-500.0,0.00016438,3]
[402485790,1768685441114,-500.0,0.00016438,3]
[402485791,1768685441126,-500.0,0.00016438,3]
[402485792,1768685441137,-1000.0,0.00016438,2]
[402485793,1768685441149,-500.0,0.00016438,3]
[402485794,1768685441163,-500.0,0.00016438,3]
[402485795,1768685441172,-500.0,0.00016438,3]
[402485796,1768685441182,-500.0,0.00016438,3]
[402485797,1768685441192,-573.25,0.00016438,3]
[402485798,1768685441202,-500.0,0.00016438,3]
[402485799,1768685441212,-500.0,0.00016438,3]
[402485800,1768685441222,-500.0,0.00016438,3]
[402485801,1768685441232,-500.0,0.00016438,3]
[402485802,1768685441242,-500.0,0.00016438,3]
[402485803,1768685441251,-500.0,0.00016438,3]
[402485804,1768685441265,-500.0,0.00016438,3]
[402485805,1768685441276,-500.0,0.00016438,3]
[402485806,1768685441287,-500.0,0.00016438,3]
[402485807,1768685441297,-500.0,0.00016438,3]
[402485808,1768685441307,-703.83,0.00016438,3]
[402485809,1768685441316,-500.0,0.00016438,3]
[402485810,1768685441327,-500.0,0.00016438,3]
[402485811,1768685441338,-500.0,0.00016438,3]
[402485812,1768685441348,-500.0,0.00016438,3]
[402485813,1768685441655,-500.0,0.00016438,3]
[402485814,1768685441670,-500.0,0.00016438,3]
[402485815,1768685441679,-500.0,0.00016438,3]
[402485816,1768685441689,-500.0,0.00016438,3]
[402485817,1768685441699,-500.0,0.00016438,3]
[402485818,1768685441708,-1056.96,0.00016438,3]
[402485819,1768685441718,-500.0,0.00016438,3]
[402485820,1768685441727,-500.0,0.00016438,3]
[402485821,1768685441737,-500.0,0.00016438,3]
[402485822,1768685441746,-561.03,0.00016438,3]
[402485823,1768685441755,-554.19378487,0.00016438,3]
[402485824,1768685441765,-500.0,0.00016438,3]
[402485825,1768685441775,-966.73,0.00016438,3]
[402485826,1768685441784,-500.0,0.00016438,3]
[402485827,1768685441795,-500.0,0.00016438,3]
[402485828,1768685441804,-500.0,0.00016438,3]
[402485829,1768685441814,-500.0,0.00016438,3]
[402485830,1768685441824,-500.0,0.00016438,3]
[402485831,1768685441833,-500.0,0.00016438,3]
[402485832,1768685441842,-500.0,0.00016438,3]
[402485833,1768685441852,-500.0,0.00016438,3]
[402485834,1768685441862,-500.0,0.00016438,3]
[402485835,1768685441871,-500.0,0.00016438,3]
[402485836,1768685441881,-500.0,0.00016438,3]
[402485837,1768685441890,-500.0,0.00016438,3]
[402485838,1768685441899,-500.0,0.00016438,3]
[402485839,1768685441908,-500.0,0.00016438,3]
[402485840,1768685441917,-500.0,0.00016438,3]
[402485841,1768685441926,-500.0,0.00016438,3]
[402485842,1768685441935,-500.0,0.00016438,3]
[402485843,1768685441944,-500.0,0.00016438,3]
[402485844,1768685441953,-534.36,0.00016438,3]
[402485845,1768685441962,-1130.85,0.00016438,3]
[402485846,1768685441971,-500.0,0.00016438,3]
[402485847,1768685441979,-500.0,0.00016438,3]
[402485848,1768685441988,-1133.01,0.00016438,3]
[402485849,1768685441997,-500.0,0.00016438,3]
[402485850,1768685442006,-500.0,0.00016438,3]
[402485851,1768685442015,-500.0,0.00016438,3]
[402485852,1768685442023,-857.58,0.00016438,3]
[402485853,1768685442032,-557.67,0.00016438,3]
[402485854,1768685442041,-500.0,0.00016438,3]
[402485855,1768685442050,-500.0,0.00016438,3]
[402485856,1768685442059,-500.0,0.00016438,3]
[402485857,1768685442069,-500.0,0.00016438,3]
[402485858,1768685442080,-500.0,0.00016438,3]
[402485859,1768685442089,-936.38,0.00016438,3]
[402485860,1768685442098,-500.0,0.00016438,3]
[402485861,1768685442107,-500.0,0.00016438,3]
[402485862,1768685442116,-500.0,0.00016438,3]
[402485863,1768685442125,-500.41163079,0.00016438,3]
[402485864,1768685442134,-500.0,0.00016438,3]
[402485865,1768685442143,-500.0,0.00016438,3]
[402485866,1768685442151,-500.0,0.00016438,3]
[402485867,1768685442160,-500.0,0.00016438,3]
[402485868,1768685442169,-500.0,0.00016438,3]
[402485869,1768685442178,-500.0,0.00016438,3]
[402485870,1768685442187,-500.0,0.00016438,3]
[402485871,1768685442195,-500.0,0.00016438,3]
[402485872,1768685442204,-290.26,0.00016438,2]
[402485873,1768685442213,-500.0,0.00016438,3]
[402485874,1768685442222,-541.79,0.00016438,3]
[402485875,1768685442231,-500.0,0.00016438,3]